bitfinex-derivatives/quotes_SOLF0:USTF0_20240904
["timestamp","ask_amount","ask_price","bid_price","bid_amount"]
[1725436849296,1.4374,130.48,130.39,1.3231]
[1725436849897,0.05038939,130.45,130.42,0.05694923]
[1725436850899,0.05038939,130.45,130.43,3.8338]
[1725436851103,0.05038939,130.45,130.42,0.05694923]
[1725436851502,0.05038939,130.45,130.44,3.8337]
[1725436853705,1.4079,130.55,130.47,3.8326]
[1725436853906,2.46079455,130.54,130.47,3.8326]
[1725436854202,3.8318,130.51,130.47,3.8326]
[1725436854406,3.8318,130.51,130.48,3.8325]
[1725436854606,3.88612358,130.51,130.48,3.88123155]
[1725436855408,0.05432358,130.51,130.48,0.04873155]
[1725436856500,0.05432358,130.51,130.48,3.88113155]
[1725436857209,0.05432358,130.51,130.49,3.8322]
[1725436857507,0.05432358,130.51,130.48,0.04873155]
[1725436858005,0.05432358,130.51,130.48,3.88113155]
[1725436858597,0.05432358,130.51,130.5,3.8319]
[1725436860003,4.1988,130.6,130.53,3.831]
[1725436860205,4.1988,130.6,130.4,2.7482]
[1725436860206,1.08876337,130.59,130.4,2.7482]
[1725436860405,2.7589,130.6,130.4,2.7482]
[1725436860406,1.3411,130.6,130.56,3.83]
[1725436860707,1.3411,130.6,130.46,7.6662]
[1725436860904,0.05136939,130.54,130.52,0.05709467]
[1725436861203,1.4026,130.63,130.47,2.8106]
[1725436861409,1.4026,130.63,130.58,3.8294]
[1725436861608,1.4026,130.63,130.48,7.6651]
[1725436861912,3.829,130.6,130.48,7.6651]
[1725436862108,1.4026,130.63,130.48,7.6651]
[1725436862309,0.05763058,130.57,130.54,0.05015641]
[1725436862613,0.05874797,130.57,130.54,0.05588402]
[1725436863308,0.05874797,130.57,130.54,3.88658402]
[1725436863703,3.88884797,130.57,130.54,3.88648402]
[1725436864407,0.05874797,130.57,130.54,3.88648402]
[1725436864612,0.05874797,130.57,130.55,3.8302]
[1725436864911,0.05874797,130.57,130.54,0.05588402]
[1725436865508,0.05874797,130.57,130.55,3.8302]
[1725436866307,0.05874797,130.57,130.56,3.8302]
[1725436868608,0.05874797,130.57,130.54,0.05588402]
[1725436868609,0.05874797,130.57,130.55,3.8304]
[1725436869105,0.05874797,130.57,130.54,0.05588402]
[1725436869314,3.8286,130.62,130.48,1.3691]
[1725436869508,3.8286,130.62,130.49,7.6644]
[1725436869907,3.8286,130.62,130.59,3.8291]
[1725436870308,3.88060219,130.62,130.59,3.8830715]
[1725436870716,0.05200219,130.62,130.59,0.0539715]
[1725436871307,3.829,130.6,130.59,0.0539715]
[1725436872612,3.83,130.57,130.54,3.8306]
[1725436872815,1.3582,130.6,130.48,1.3691]
[1725436873014,1.08872801,130.59,130.48,1.3691]
[1725436873614,3.88630161,130.55,130.52,0.05664855]
[1725436873807,3.88630161,130.55,130.52,0.04895567]
[1725436874008,0.05560161,130.55,130.52,0.04895567]
[1725436875118,3.88610161,130.55,130.52,0.04895567]
[1725436875821,0.05560161,130.55,130.52,0.04895567]
[1725436876514,0.05560161,130.55,130.54,3.8308]
[1725436877014,0.05560161,130.55,130.53,3.831]
[1725436877217,0.05560161,130.55,130.52,0.04895567]
[1725436877414,3.8308,130.54,130.52,0.04895567]
[1725436877910,3.88620161,130.55,130.52,0.04895567]
[1725436878108,3.88620161,130.55,130.53,3.8311]
[1725436878109,0.05560161,130.55,130.53,3.8311]
[1725436881213,0.05560161,130.55,130.52,0.04895567]
[1725436881617,0.05560161,130.55,130.54,3.8308]
[1725436881815,2.7567,130.61,130.48,1.3691]
[1725436882217,3.8293,130.59,130.48,1.3691]
[1725436882418,1.376,130.66,130.49,7.6644]
[1725436882625,3.86125992,130.65,130.49,7.6644]
[1725436882819,3.8289,130.61,130.58,3.8296]
[1725436883218,3.88695085,130.61,130.58,3.88426208]
[1725436884015,3.8291,130.6,130.58,3.88426208]
[1725436884220,0.05805085,130.61,130.58,0.05466208]
[1725436884523,1.3918,130.6,130.48,1.3691]
[1725436884723,3.83,130.57,130.48,1.3691]
[1725436885027,1.3918,130.6,130.48,1.3691]
[1725436885226,3.83,130.57,130.54,3.8307]
[1725436885619,3.83,130.57,130.54,0.0513018]
[1725436885620,0.05739615,130.57,130.54,0.0513018]
[1725436885820,0.05739615,130.57,130.56,3.8302]
[1725436889121,1.3306,130.65,130.55,4.1468]
[1725436889122,3.8285,130.62,130.59,3.8291]
[1725436889324,1.3306,130.65,130.55,4.1468]
[1725436889628,3.8283,130.63,130.55,4.1468]
[1725436890125,0.05268383,130.6,130.59,3.8291]
[1725436891426,20.4593294,130.7,130.58,0.05170401]
[1725436891726,21.54721961,130.69,130.55,4.1468]
[1725436891921,1.08790086,130.68,130.55,4.1468]
[1725436892121,1.08790086,130.67,130.55,4.1468]
[1725436892336,2.798,130.7,130.55,4.1468]
[1725436892528,0.04903927,130.64,130.61,0.05496764]
[1725436892826,0.05590159,130.64,130.61,0.04857727]
[1725436893621,0.05590159,130.64,130.63,3.8281]
[1725436895430,102.14701836,130.71,130.66,3.827]
[1725436895926,3.8265,130.69,130.66,3.827]
[1725436896331,3.87684865,130.69,130.66,3.88556931]
[1725436896533,0.05034865,130.69,130.67,3.8269]
[1725436897733,0.05034865,130.69,130.66,0.05856931]
[1725436897734,0.05034865,130.69,130.68,3.8267]
[1725436898323,0.05034865,130.69,130.66,0.05856931]
[1725436901328,1.3883,130.76,130.63,1.3235]
[1725436901535,1.08722295,130.75,130.63,1.3235]
[1725436901930,2.7942,130.78,130.63,1.3235]
[1725436902129,1.08717863,130.77,130.63,1.3235]
[1725436902438,0.05365217,130.71,130.69,0.05729302]
[1725436902634,0.05895166,130.71,130.69,0.04887365]
[1725436907631,1.3741,130.73,130.62,2.6654]
[1725436907632,1.08739292,130.72,130.62,2.6654]
[1725436907840,1.4458,130.71,130.62,2.6654]
[1725436908627,0.05084346,130.68,130.65,0.05618934]
[1725436910236,1.08762605,130.7,130.53,2.6947]
[1725436910738,1.4458,130.71,130.53,2.6947]
[1725436910935,1.08767171,130.7,130.53,2.6947]
[1725436911340,0.05039137,130.63,130.6,0.05581755]
[1725436911531,0.04941772,130.63,130.6,0.05329163]
[1725436932356,3.87771772,130.63,130.6,3.88219163]
[1725436933064,0.04941772,130.63,130.61,3.8286]
[1725436933367,0.04941772,130.63,130.6,0.05329163]
[1725436933565,0.04941772,130.63,130.62,3.8284]
[1725436941465,0.04941772,130.63,130.6,0.05329163]
[1725436941662,0.04941772,130.63,130.6,3.88219163]
[1725436941863,0.04941772,130.63,130.6,0.05329163]
[1725436942262,0.04941772,130.63,130.61,3.8285]
[1725436942461,0.04941772,130.63,130.6,0.05329163]
[1725436943266,0.04941772,130.63,130.62,3.8284]
[1725436943665,0.04941772,130.63,130.6,0.05329163]
[1725436943866,3.87761772,130.63,130.6,0.05329163]
[1725436944372,0.04941772,130.63,130.6,0.05329163]
[1725436944674,3.87771772,130.63,130.6,3.88219163]
[1725436946066,3.87771772,130.63,130.52,4.1948]
[1725436946067,0.04941772,130.63,130.52,4.1948]
[1725436946264,16.6914,130.69,130.52,4.1948]
[1725436946265,2.694,130.62,130.52,4.1948]
[1725436947069,3.8293,130.59,130.55,3.8303]
[1725436947265,3.8293,130.59,130.52,4.1948]
[1725436947266,0.05734992,130.58,130.56,0.05567838]
[1725436947668,3.88714992,130.58,130.56,0.05567838]
[1725436948866,3.8299,130.57,130.56,0.05567838]
[1725436949061,2.694,130.62,130.44,4.0677]
[1725436949266,1.08861878,130.61,130.44,4.0677]
[1725436949761,3.8303,130.56,130.52,3.8313]
[1725436950073,0.04909871,130.55,130.53,0.05313877]
[1725436950270,0.04909871,130.55,130.53,3.88413877]
[1725436951673,0.04909871,130.55,130.53,0.05313877]
[1725436952467,0.04909871,130.55,130.53,3.88413877]
[1725436953167,0.04909871,130.55,130.54,3.8308]
[1725436962292,0.04909871,130.55,130.53,0.05313877]
[1725436963285,1.08863697,130.6,130.45,3.8334]
[1725436963478,9.0857,130.61,130.44,4.0677]
[1725436963679,3.8321,130.5,130.44,4.0677]
[1725436964073,3.8321,130.5,130.46,3.88464093]
[1725436964285,0.05006998,130.48,130.46,3.88464093]
[1725436964485,0.05006998,130.48,130.46,0.05174093]
[1725436965082,0.05006998,130.48,130.47,3.8328]
[1725436965579,0.05006998,130.48,130.46,0.05174093]
[1725436965784,0.05006998,130.48,130.39,75.03998358]
[1725436965987,1.08910991,130.56,130.39,76.42058358]
[1725436966177,1.08910991,130.56,130.39,1.3806]
[1725436966379,7.6612,130.55,130.39,1.3806]
[1725436966580,1.08910991,130.54,130.39,1.3806]
[1725436966783,1.08910991,130.53,130.45,0.05316132]
[1725436966986,0.04997138,130.48,130.33,2.7476]
[1725436967178,7.6617,130.54,130.34,1.3806]
[1725436967179,0.05231967,130.42,130.34,1.3806]
[1725436967392,3.8342,130.43,130.39,3.88667084]
[1725436967689,0.05378112,130.42,130.4,0.05698496]
[1725436968977,3.8346,130.41,130.4,0.05698496]
[1725436969285,0.05378112,130.42,130.4,0.05698496]
[1725436969788,0.05378112,130.42,130.34,1.3806]
[1725436970087,3.8352,130.4,130.34,1.3806]
[1725436970279,1.3392,130.5,130.34,1.3806]
[1725436970480,1.09007467,130.49,130.34,1.3806]
[1725436970886,0.05542564,130.43,130.4,0.0489934]
[1725436971191,0.05093898,130.43,130.41,3.8346]
[1725436971579,0.05093898,130.43,130.42,3.8343]
[1725436972282,1.3392,130.5,130.41,2.8234]
[1725436972587,1.3392,130.5,130.42,1.3574]
[1725436972883,2.7909,130.55,130.42,1.3574]
[1725436973290,0.05081039,130.5,130.47,3.88206717]
[1725436973480,0.05081039,130.5,130.47,3.889685]
[1725436976088,0.05081039,130.5,130.47,0.057185]
[1725436977788,0.05081039,130.5,130.47,3.889785]
[1725436978992,3.88281039,130.5,130.47,3.889785]
[1725436979187,0.05081039,130.5,130.47,3.889785]
[1725436980493,0.05081039,130.5,130.47,0.057185]
[1725436981284,3.8325,130.48,130.47,0.057185]
[1725436984392,1.3989,130.54,130.42,3.8341]
[1725436984597,1.3714,130.49,130.42,3.8341]
[1725436985395,0.05693958,130.47,130.44,0.0505577]
[1725436986197,3.8333,130.46,130.44,0.0505577]
[1725436986495,0.05693958,130.47,130.44,0.0505577]
[1725436987091,3.8334,130.45,130.44,0.0505577]
[1725436990399,0.05693958,130.47,130.44,0.0505577]
[1725436991097,3.8331,130.46,130.44,0.0505577]
[1725436991395,0.05693958,130.47,130.44,0.0505577]
[1725436991788,3.88973958,130.47,130.44,0.0505577]
[1725436992400,0.05693958,130.47,130.44,0.0505577]
[1725436992998,0.05693958,130.47,130.45,3.8334]
[1725436993501,3.88983958,130.47,130.44,0.0505577]
[1725436993699,3.88983958,130.47,130.44,3.8841577]
[1725436994202,0.05693958,130.47,130.45,3.8331]
[1725436994592,0.05693958,130.47,130.44,0.0505577]
[1725436994803,3.88973958,130.47,130.44,3.8841577]
[1725436995103,0.05693958,130.47,130.44,0.0505577]
[1725436995698,3.8334,130.45,130.44,0.0505577]
[1725437003108,1.3814,130.46,130.33,2.6411]
[1725437003309,1.3814,130.46,130.34,1.4429]
[1725437003607,3.8348,130.41,130.37,3.8356]
[1725437003807,1.3814,130.46,130.37,3.8356]
[1725437004009,3.8348,130.41,130.4,0.05312631]
[1725437004206,0.0584103,130.43,130.4,0.05312631]
[1725437005013,3.8345,130.42,130.4,0.05312631]
[1725437005504,0.0584103,130.43,130.4,0.05312631]
[1725437006007,3.8343,130.42,130.4,0.05312631]
[1725437006901,0.0584103,130.43,130.4,0.05312631]
[1725437008109,3.8343,130.42,130.4,0.05312631]
[1725437008305,0.0584103,130.43,130.4,0.05312631]
[1725437009305,3.8346,130.41,130.4,0.05312631]
[1725437014614,3.8925103,130.43,130.4,0.05312631]
[1725437015414,0.0584103,130.43,130.4,0.05312631]
[1725437015713,105.58019142,130.54,130.34,1.4429]
[1725437015909,2.7903,130.53,130.34,1.4429]
[1725437016110,3.8328,130.48,130.44,3.8335]
[1725437016309,2.7903,130.53,130.35,7.6727]
[1725437016819,0.0549231,130.45,130.43,0.05172431]
[1725437017018,0.0538485,130.45,130.43,0.05864606]
[1725437017619,0.0538485,130.45,130.43,3.89254606]
[1725437018617,0.0538485,130.45,130.43,0.05864606]
[1725437021421,3.8337,130.44,130.43,0.05864606]
[1725437025134,3.8873485,130.45,130.43,0.05864606]
[1725437026723,3.8337,130.44,130.43,0.05864606]
[1725437027425,3.8874485,130.45,130.43,0.05864606]
[1725437027624,0.0538485,130.45,130.43,0.05864606]
[1725437027830,3.8872485,130.45,130.43,0.05864606]
[1725437028225,0.0538485,130.45,130.43,0.05864606]
[1725437028426,3.8337,130.44,130.43,0.05864606]
[1725437041134,0.0538485,130.45,130.43,0.05864606]
[1725437041835,3.8337,130.44,130.43,0.05864606]
[1725437043740,0.0538485,130.45,130.43,0.05864606]
[1725437047350,0.0538485,130.45,130.44,3.8337]
[1725437047751,0.0538485,130.45,130.43,0.05864606]
[1725437048648,3.8337,130.44,130.43,0.05864606]
[1725437051654,15.3436,130.49,130.34,1.4429]
[1725437051849,2.44251447,130.48,130.34,1.4429]
[1725437052056,1.3524,130.48,130.34,1.4429]
[1725437052250,1.4287,130.47,130.36,3.8358]
[1725437052552,0.05598565,130.43,130.4,0.05293121]
[1725437054360,3.8346,130.41,130.4,0.05293121]
[1725437060849,7.6669,130.45,130.33,2.6411]
[1725437061053,7.6669,130.45,130.33,1.3068]
[1725437061254,7.6669,130.45,130.33,5.1435]
[1725437061461,8.75820777,130.44,130.33,1.3068]
[1725437061657,7.6676,130.44,130.33,1.3068]
[1725437061849,0.05279988,130.4,130.37,0.05488079]
[1725437062252,3.8355,130.38,130.37,0.05488079]
[1725437069181,0.05279988,130.4,130.37,0.05488079]
[1725437069879,3.8355,130.38,130.37,0.05488079]
[1725437071684,1.3651,130.41,130.28,1.4435]
[1725437071880,1.3119,130.39,130.28,1.4435]
[1725437072179,1.3119,130.39,130.29,3.8379]
[1725437072581,0.0499323,130.35,130.33,0.0548721]
[1725437072779,3.8368,130.34,130.33,0.0548721]
[1725437073682,0.0499323,130.35,130.33,0.0548721]
[1725437073882,0.0499323,130.35,130.33,3.8915721]
[1725437074384,1.4055,130.42,130.28,1.4435]
[1725437074385,74.47887115,130.48,130.28,1.4435]
[1725437074591,2.47876646,130.47,130.28,1.4435]
[1725437074888,1.09066646,130.46,130.28,1.4435]
[1725437075481,1.09066646,130.46,130.38,3.8353]
[1725437075482,3.834,130.43,130.38,3.8353]
[1725437075682,20.47685029,130.48,130.39,0.05867329]
[1725437075879,20.47685029,130.48,130.37,2.7679]
[1725437076290,20.47685029,130.48,130.45,3.8332]
[1725437076483,3.832,130.5,130.45,3.8332]
[1725437076685,0.05568067,130.49,130.46,0.05678079]
[1725437077886,0.05568067,130.49,130.46,3.88988079]
[1725437078088,0.05568067,130.49,130.46,0.05678079]
[1725437079384,0.05568067,130.49,130.48,3.8325]
[1725437079585,104.13959142,130.54,130.37,2.7679]
[1725437080186,3.8312,130.53,130.49,3.8322]
[1725437080591,0.05637927,130.52,130.5,0.04914577]
[1725437082187,3.88787927,130.52,130.5,0.04914577]
[1725437082394,0.05637927,130.52,130.5,0.04914577]
[1725437082695,104.13959142,130.54,130.38,1.3456]
[1725437082996,1.3301,130.53,130.38,1.3456]
[1725437083195,3.8327,130.48,130.43,3.8338]
[1725437083399,3.8327,130.48,130.38,1.3456]
[1725437083694,1.3427,130.57,130.42,0.05283425]
[1725437083890,1.3427,130.57,130.38,9.0161]
[1725437084095,3.8309,130.54,130.39,7.6704]
[1725437084692,0.05859477,130.48,130.45,0.0529251]
[1725437084892,3.8309,130.54,130.45,0.04828348]
[1725437085098,3.8309,130.54,130.39,7.6704]
[1725437086091,0.05359798,130.48,130.45,0.05363605]
[1725437086293,3.8309,130.54,130.39,7.6704]
[1725437086494,3.8306,130.55,130.51,3.8315]
[1725437086995,3.8308,130.54,130.51,3.8315]
[1725437087189,3.88571988,130.54,130.51,3.8315]
[1725437087390,3.88571988,130.54,130.51,3.88670671]
[1725437088494,3.8312,130.53,130.51,0.05520671]
[1725437088901,3.8314,130.52,130.51,0.05520671]
[1725437090003,3.8311,130.53,130.51,0.05520671]
[1725437091305,3.88571988,130.54,130.51,0.05520671]
[1725437091608,0.05491988,130.54,130.51,0.05520671]
[1725437091811,0.05491988,130.54,130.51,3.88670671]
[1725437093804,3.88571988,130.54,130.51,0.05520671]
[1725437094004,0.05491988,130.54,130.51,0.05520671]
[1725437094505,0.05491988,130.54,130.51,3.88680671]
[1725437097005,3.88581988,130.54,130.51,0.05520671]
[1725437100419,0.05491988,130.54,130.51,0.05520671]
[1725437100809,0.05491988,130.54,130.51,3.88670671]
[1725437101017,0.05491988,130.54,130.51,0.05520671]
[1725437101413,3.8318,130.51,130.47,3.8326]
[1725437101718,1.3427,130.57,130.4,7.6697]
[1725437101917,1.08928104,130.56,130.38,1.3456]
[1725437102420,3.833,130.47,130.46,0.05814055]
[1725437102615,0.05579233,130.48,130.45,0.04841956]
[1725437102916,7.6616,130.54,130.37,1.4489]
[1725437103121,1.08972957,130.53,130.37,1.4489]
[1725437103322,3.8342,130.43,130.38,3.8354]
[1725437103811,0.04869061,130.42,130.39,0.05548363]
[1725437106723,0.04869061,130.42,130.4,3.8347]
[1725437108925,0.04869061,130.42,130.41,3.8346]
[1725437111826,0.04869061,130.42,130.4,3.8347]
[1725437113521,3.88329061,130.42,130.39,3.89058363]
[1725437115022,0.04869061,130.42,130.39,0.05548363]
[1725437115525,3.8349,130.4,130.39,0.05548363]
[1725437115926,0.04869061,130.42,130.39,0.05548363]
[1725437116328,3.8348,130.41,130.39,0.05548363]
[1725437116917,0.04869061,130.42,130.39,0.05548363]
[1725437116918,3.8349,130.4,130.39,0.05548363]
[1725437119029,0.04869061,130.42,130.39,0.05548363]
[1725437119030,3.8347,130.41,130.39,0.05548363]
[1725437119823,3.8349,130.4,130.39,0.05548363]
[1725437123128,3.8347,130.41,130.39,0.05548363]
[1725437123335,0.04869061,130.42,130.39,0.05548363]
[1725437123732,3.8347,130.41,130.39,0.05548363]
[1725437123937,0.04869061,130.42,130.39,0.05548363]
[1725437124339,3.88319061,130.42,130.39,0.05548363]
[1725437124635,0.04869061,130.42,130.39,0.05548363]
[1725437125037,3.88319061,130.42,130.39,0.05548363]
[1725437125539,0.04869061,130.42,130.39,0.05548363]
[1725437125737,3.8349,130.4,130.39,0.05548363]
[1725437126131,3.8354,130.39,130.33,1.347]
[1725437126436,2.7946,130.41,130.33,1.347]
[1725437126738,2.7946,130.41,130.35,3.8362]
[1725437127039,3.8353,130.39,130.35,3.8362]
[1725437127341,0.05068848,130.38,130.36,0.05488346]
[1725437127733,0.05068848,130.38,130.36,3.89098346]
[1725437128738,0.05068848,130.38,130.37,3.8358]
[1725437130341,0.05068848,130.38,130.36,3.89088346]
[1725437131944,0.05068848,130.38,130.36,0.05488346]
[1725437132450,3.8358,130.37,130.36,0.05488346]
[1725437133154,3.88638848,130.38,130.36,0.05488346]
[1725437133655,0.05068848,130.38,130.36,3.89078346]
[1725437133849,0.05068848,130.38,130.36,0.05488346]
[1725437134254,0.05068848,130.38,130.37,3.8358]
[1725437134743,3.8342,130.43,130.4,3.8348]
[1725437135155,2.8044,130.46,130.4,3.8348]
[1725437135850,0.05158245,130.44,130.42,0.0485553]
[1725437136456,3.8342,130.43,130.42,0.0485553]
[1725437138157,3.88528245,130.44,130.42,0.0485553]
[1725437140344,0.05158245,130.44,130.42,3.8827553]
[1725437140951,0.05158245,130.44,130.42,0.0485553]
[1725437140952,3.88528245,130.44,130.42,0.0485553]
[1725437142658,0.05158245,130.44,130.42,3.8828553]
[1725437144055,0.05158245,130.44,130.42,0.0485553]
[1725437144862,0.05158245,130.44,130.43,3.834]
[1725437147360,0.05158245,130.44,130.42,0.0485553]
[1725437148065,0.05158245,130.44,130.42,3.8828553]
[1725437151562,0.05158245,130.44,130.42,0.0485553]
[1725437154055,0.05158245,130.44,130.42,3.8826553]
[1725437155367,0.05158245,130.44,130.42,0.0485553]
[1725437156869,0.05158245,130.44,130.42,3.8826553]
[1725437160281,0.05158245,130.44,130.43,3.834]
[1725437161467,2.6485,130.49,130.46,3.833]
[1725437161975,6.4808,130.49,130.46,3.833]
[1725437162172,2.6485,130.49,130.46,3.833]
[1725437162369,99.88023765,130.51,130.39,7.6702]
[1725437162574,0.05864084,130.46,130.44,0.05435466]
[1725437162867,0.05411075,130.46,130.44,0.05435466]
[1725437163264,0.05411075,130.46,130.45,3.8334]
[1725437164669,103.71213765,130.51,130.48,3.8324]
[1725437165671,3.8321,130.5,130.47,3.8328]
[1725437165970,3.8321,130.5,130.47,3.89127206]
[1725437166570,99.93682113,130.51,130.47,0.05847206]
[1725437166769,99.88023765,130.51,130.39,7.6702]
[1725437167165,3.8327,130.48,130.45,3.8333]
[1725437167366,99.88023765,130.51,130.39,7.6702]
[1725437167775,99.88023765,130.51,130.47,3.8326]
[1725437167776,3.8319,130.5,130.47,3.8326]
[1725437167976,0.05031614,130.5,130.47,0.04924256]
[1725437168869,0.05031614,130.5,130.48,3.8324]
[1725437170963,0.05031614,130.5,130.49,3.8322]
[1725437171169,0.05031614,130.5,130.47,0.04924256]
[1725437171580,0.05031614,130.5,130.48,3.8323]
[1725437174578,0.05031614,130.5,130.49,3.8322]
[1725437175370,0.05031614,130.5,130.47,0.04924256]
[1725437176483,0.05031614,130.5,130.48,3.8324]
[1725437178682,0.05031614,130.5,130.49,3.8322]
[1725437179182,0.05031614,130.5,130.48,3.8325]
[1725437181586,0.05031614,130.5,130.47,0.04924256]
[1725437182883,3.8325,130.48,130.47,0.04924256]
[1725437184184,0.05031614,130.5,130.47,0.04924256]
[1725437184585,3.88241614,130.5,130.47,0.04924256]
[1725437184985,0.05031614,130.5,130.49,3.8322]
[1725437189585,0.05031614,130.5,130.48,3.8324]
[1725437193084,0.05031614,130.5,130.47,0.04924256]
[1725437193785,0.05031614,130.5,130.48,3.8325]
[1725437194790,0.05031614,130.5,130.49,3.8322]
[1725437195385,0.05031614,130.5,130.48,3.8324]
[1725437196092,0.05031614,130.5,130.47,0.04924256]
[1725437197296,0.05031614,130.5,130.48,3.8325]
[1725437201997,0.05031614,130.5,130.47,3.88194256]
[1725437202198,0.05031614,130.5,130.47,0.04924256]
[1725437203098,3.88241614,130.5,130.47,0.04924256]
[1725437204009,3.8323,130.49,130.47,0.04924256]
[1725437205205,0.05031614,130.5,130.48,3.8324]
[1725437209710,0.05031614,130.5,130.49,3.8322]
[1725437209905,0.05031614,130.5,130.47,0.04924256]
[1725437210318,0.05031614,130.5,130.48,3.8324]
[1725437212423,0.05031614,130.5,130.47,0.04924256]
[1725437212619,0.05031614,130.5,130.4,1.351]
[1725437212818,1.3764,130.52,130.4,1.351]
[1725437213019,3.8329,130.47,130.44,3.8337]
[1725437213722,3.88948958,130.47,130.44,3.89038404]
[1725437216626,0.05658958,130.47,130.45,3.8334]
[1725437216927,0.05658958,130.47,130.44,0.05668404]
[1725437217126,0.05658958,130.47,130.46,3.8331]
[1725437220332,1.4072,130.53,130.45,1.3743]
[1725437220530,1.4417,130.54,130.45,2.6802]
[1725437221418,0.05418072,130.51,130.48,0.05554664]
[1725437221823,0.05418072,130.51,130.49,3.832]
[1725437223125,3.8319,130.5,130.48,0.05554664]
[1725437223324,0.05418072,130.51,130.48,0.05554664]
[1725437223724,3.88588072,130.51,130.48,3.88784664]
[1725437226632,0.05418072,130.51,130.48,3.88784664]
[1725437229136,3.88588072,130.51,130.48,3.88784664]
[1725437231843,0.05418072,130.51,130.48,3.88784664]
[1725437232036,0.05418072,130.51,130.48,0.05554664]
[1725437232835,3.88598072,130.51,130.48,0.05554664]
[1725437233541,3.88598072,130.51,130.48,3.88794664]
[1725437234646,0.05418072,130.51,130.48,3.88794664]
[1725437238951,0.05418072,130.51,130.49,3.8322]
[1725437239349,0.05418072,130.51,130.48,0.05554664]
[1725437239552,1.3994,130.56,130.46,0.5655]
[1725437239845,1.3994,130.56,130.45,2.6802]
[1725437240548,0.0491637,130.52,130.5,3.8317]
[1725437240851,0.0491637,130.52,130.5,3.88663553]
[1725437242255,3.8805637,130.52,130.5,0.05493553]
[1725437244846,0.0491637,130.52,130.5,0.05493553]
[1725437245247,0.0491637,130.52,130.5,3.88663553]
[1725437246454,0.0491637,130.52,130.51,3.8316]
[1725437253258,0.0491637,130.52,130.5,0.05493553]
[1725437253259,0.0491637,130.52,130.5,3.88663553]
[1725437253859,0.0491637,130.52,130.5,0.05493553]
[1725437254756,0.0491637,130.52,130.5,3.88673553]
[1725437263068,3.8316,130.51,130.5,0.05493553]
[1725437263266,2.752,130.59,130.45,1.3743]
[1725437263571,1.0891656,130.58,130.45,1.3743]
[1725437263865,3.8321,130.5,130.47,3.8328]
[1725437264261,3.88435704,130.5,130.47,3.8822746]
[1725437264665,3.8324,130.49,130.47,0.0494746]
[1725437268476,3.88435704,130.5,130.47,3.8822746]
[1725437270771,0.05225704,130.5,130.47,0.0494746]
[1725437271477,0.05225704,130.5,130.49,3.8322]
[1725437271870,0.05225704,130.5,130.47,0.0494746]
[1725437273178,0.05225704,130.5,130.48,3.8324]
[1725437276979,3.88425704,130.5,130.47,3.8821746]
[1725437281484,3.8323,130.49,130.47,3.8821746]
[1725437282972,3.8325,130.48,130.47,0.0494746]
[1725437285789,3.8328,130.47,130.45,3.8333]
[1725437285976,3.8328,130.47,130.44,3.8336]
[1725437286678,3.89110192,130.47,130.44,3.88578815]
[1725437286976,0.05830192,130.47,130.45,3.8333]
[1725437288583,0.05830192,130.47,130.44,0.05218815]
[1725437289183,0.05830192,130.47,130.45,3.8334]
[1725437290279,0.05830192,130.47,130.44,0.05218815]
[1725437292891,0.05830192,130.47,130.45,3.8332]
[1725437295778,0.05830192,130.47,130.46,3.8331]
[1725437296180,1.3366,130.53,130.45,1.4124]
[1725437296887,3.8316,130.52,130.48,3.8323]
[1725437297090,1.3366,130.53,130.48,3.8323]
[1725437297393,0.05430547,130.52,130.49,0.05399647]
[1725437297981,3.8317,130.51,130.49,0.05399647]
[1725437300688,3.88580547,130.52,130.49,0.05399647]
[1725437301587,3.8316,130.51,130.49,0.05399647]
[1725437302996,3.88580547,130.52,130.49,0.05399647]
[1725437303793,3.88580547,130.52,130.49,3.88619647]
[1725437305597,0.05430547,130.52,130.49,0.05399647]
[1725437306404,0.05430547,130.52,130.5,3.8317]
[1725437314602,0.05430547,130.52,130.49,0.05399647]
[1725437315498,3.88580547,130.52,130.49,3.88619647]
[1725437315903,3.8317,130.51,130.49,0.05399647]
[1725437317907,3.88570547,130.52,130.49,0.05399647]
[1725437318100,0.05430547,130.52,130.49,0.05399647]
[1725437318295,0.05430547,130.52,130.5,3.8318]
[1725437323511,3.88570547,130.52,130.49,3.88609647]
[1725437324104,0.05430547,130.52,130.49,0.05399647]
[1725437324715,0.05430547,130.52,130.51,3.8316]
[1725437331319,0.05430547,130.52,130.49,0.05399647]
[1725437331715,3.8318,130.51,130.49,0.05399647]